[Event "Lueneburger Schachfestival IM 2019"]
[Site "Lueneburg"]
[Date "2019.08.05"]
[Round "4.2"]
[White "Schulze, Lara"]
[Black "Aarav Dengla"]
[Result "1-0"]
[ECO "B80"]
[WhiteElo "2253"]
[BlackElo "2038"]
[Annotator "ChessBase"]
[PlyCount "71"]
[EventDate "2019.08.02"]
[EventType "tourn"]
[EventCountry "GER"]
[SourceTitle "playchess.com"]
[Source "ChessBase"]
[SourceQuality "1"]
[TimeControl "40/5400+30:1800+30"]

1. e4 {[%emt 0:00:00]} c5 {[%emt 0:00:00]} 2. Nf3 {[%emt 0:00:00]} d6 {[%emt 0:00:00]} 3. d4 {[%emt 0:00:07]} cxd4 {[%emt 0:00:00]} 4. Nxd4 {[%emt 0:00:16]} Nf6 {[%emt 0:00:00]} 5. Nc3 {[%emt 0:00:04]} a6 {[%emt 0:00:02]} 6. f3 {[%emt 0:00:30]} e6 {[%emt 0:04:51]} 7. Be3 {[%emt 0:02:45]} Be7 {[%emt 0:07:07]} 8. Qd2 {[%emt 0:02:37]} Qc7 {[%emt 0:09:05]} 9. g4 {[%emt 0:03:28]} h6 {[%emt 0:02:40]} 10. O-O-O {[%emt 0:04:15]} Bd7 {[%emt 0:07:46]} 11. h4 {[%emt 0:03:29]} Nc6 {[%emt 0:04:54]} 12. Rg1 {[%emt 0:12:39]} Nxd4 {[%emt 0:15:09]} 13. Qxd4 {[%emt 0:05:07]} b5 {[%emt 0:08:49]} 14. g5 {[%emt 0:04:50]} e5 {[%emt 0:06:23]} 15. Qd3 {[%emt 0:07:00]} hxg5 {[%emt 0:00:13]} 16. hxg5 {[%emt 0:00:13]} Nh5 {[%emt 0:00:25]} 17. Nd5 {[%emt 0:01:12]} Qc6 {[%emt 0:00:48]} 18. g6 {[%emt 0:13:22]} Be6 {[%emt 0:06:55]} 19. gxf7+ {[%emt 0:04:11]} Kxf7 {[%emt 0:07:20]} 20. f4 {[%emt 0:05:01]} Rac8 {[%emt 0:06:36]} 21. Be2 {[%emt 0:08:57]} Qc4 {[%emt 0:03:33]} 22. Qxc4 {[%emt 0:10:31]} bxc4 {[%emt 0:00:01]} 23. Nxe7 {[%emt 0:01:59]} Kxe7 {[%emt 0:00:02]} 24. fxe5 {[%emt 0:00:39]} dxe5 {[%emt 0:00:01]} 25. Bxh5 {[%emt 0:03:51]} Rxh5 {[%emt 0:00:04]} 26. Rxg7+ {[%emt 0:00:04]} Kf6 {[%emt 0:04:19]} 27. Rb7 {[%emt 0:04:25]} Rc6 {[%emt 0:04:03]} 28. Rf1+ {[%emt 0:01:21]} Kg6 {[%emt 0:00:10]} 29. Rg1+ {[%emt 0:00:06]} Kf6 {[%emt 0:00:12]} 30. Bb6 {[%emt 0:00:17]} Rh8 {[%emt 0:01:36]} 31. Bc7 {[%emt 0:00:35]} Bc8 {[%emt 0:01:09]} 32. Ra7 {[%emt 0:00:31]} c3 {[%emt 0:00:46]} 33. b3 {[%emt 0:01:05]} Be6 {[%emt 0:00:33]} 34. Rf1+ {[%emt 0:00:37]} Kg5 {[%emt 0:00:23]} 35. Bxe5 {[%emt 0:00:16]} Rh6 {[%emt 0:00:38]} 36. Bf4+ {[%emt 0:00:29]} 1-0

[Event "Lueneburger Schachfestival IM 2019"]
[Site "Lueneburg"]
[Date "2019.08.05"]
[Round "4.3"]
[White "Stork, Oliver"]
[Black "Knuedel, Torben"]
[Result "1-0"]
[ECO "A18"]
[WhiteElo "2322"]
[BlackElo "2151"]
[Annotator "NA"]
[PlyCount "53"]
[EventDate "2019.08.02"]
[EventType "tourn"]
[EventCountry "GER"]
[SourceTitle "playchess.com"]
[Source "ChessBase"]
[SourceQuality "1"]
[TimeControl "40/5400+30:1800+30"]

1. c4 {[%emt 0:00:00]} Nf6 {[%emt 0:00:00]} 2. Nc3 {[%emt 0:00:00]} e6 {[%emt 0:00:00]} 3. e4 {[%emt 0:00:00]} d5 {[%emt 0:00:00]} 4. cxd5 {[%emt 0:00:00]} exd5 {[%emt 0:00:00]} 5. e5 {[%emt 0:00:00]} Ne4 {[%emt 0:00:00]} 6. d3 {[%emt 0:00:35]} Nxc3 {[%emt 0:00:32]} 7. bxc3 {[%emt 0:00:05]} c5 {[%emt 0:01:24]} 8. Nf3 {[%emt 0:00:55]} Nc6 {[%emt 0:01:52]} 9. d4 {[%emt 0:04:29]} cxd4 {[%emt 0:17:44]} 10. cxd4 {[%emt 0:00:33]} Bb4+ {[%emt 0:01:46]} 11. Bd2 {[%emt 0:00:29]} Qa5 {[%emt 0:00:08]} 12. Rb1 {[%emt 0:17:48]} O-O {[%emt 0:19:14]} 13. Bd3 {[%emt 0:12:32]} Bg4 {[%emt 0:07:22]} 14. Rxb4 $15 {[%emt 0:23:21]} ({White should play} 14. Bxb4 $11 Nxb4 15. O-O) 14... Nxb4 {[%emt 0:05:16]} 15. O-O $1 {[%emt 0:01:09]} Qb6 {[%emt 0:13:20]} 16. Bxh7+ {[%emt 0:06:41]} Kh8 {[%emt 0:03:25]} 17. Bb1 {[%emt 0:01:04]} a5 {[%emt 0:04:34]} 18. Qb3 {[%emt 0:04:07]} Qe6 {[%emt 0:04:37]} 19. Ng5 {[%emt 0:04:13]} Qc8 {[%emt 0:01:57]} 20. Rc1 {[%emt 0:04:15]} Nc6 {[%emt 0:00:14]} 21. Qxd5 {[%emt 0:01:43]} Qd7 {[%emt 0:03:25]} 22. Qe4 {[%emt 0:05:30]} g6 {[%emt 0:02:07]} 23. e6 {[%emt 0:05:03]} Bxe6 {[%emt 0:02:54]} 24. Qh4+ {[%emt 0:01:54]} Kg7 {[%emt 0:00:01]} 25. Qh7+ {[%emt 0:00:11]} Kf6 {[%emt 0:00:01]} 26. Ne4+ {[%emt 0:00:10]} Ke7 {[%emt 0:00:37]} 27. Bg5+ {[%emt 0:00:02]} 1-0

[Event "Lueneburger Schachfestival IM 2019"]
[Site "Lueneburg"]
[Date "2019.08.06"]
[Round "5.1"]
[White "Carlstedt, Jonathan"]
[Black "Chennaoui, Yasin"]
[Result "1-0"]
[ECO "D41"]
[WhiteElo "2408"]
[BlackElo "2092"]
[Annotator "NA"]
[PlyCount "182"]
[EventDate "2019.08.02"]
[EventType "tourn"]
[EventCountry "GER"]
[SourceTitle "playchess.com"]
[Source "ChessBase"]
[SourceQuality "1"]
[TimeControl "40/5400+30:1800+30"]

1. d4 {[%emt 0:00:00]} Nf6 {[%emt 0:00:00]} 2. c4 {[%emt 0:00:00]} e6 {[%emt 0:00:22]} 3. Nc3 {[%emt 0:00:00]} d5 {[%emt 0:00:29]} 4. cxd5 {[%emt 0:00:00]} Nxd5 {[%emt 0:00:26]} 5. e4 {[%emt 0:00:28]} Nxc3 {[%emt 0:00:02]} 6. bxc3 {[%emt 0:00:07]} c5 {[%emt 0:00:07]} 7. Nf3 {[%emt 0:00:04]} cxd4 {[%emt 0:00:39]} 8. cxd4 {[%emt 0:00:04]} Bb4+ {[%emt 0:00:12]} 9. Bd2 {[%emt 0:00:05]} Qa5 {[%emt 0:01:14]} (9... Bxd2+ $11 10. Qxd2 O-O) 10. Bd3 {[%emt 0:01:37]} (10. Rb1 $16 Bxd2+ 11. Qxd2 Qxd2+ 12. Kxd2) 10... Nd7 {[%emt 0:02:46]} (10... Nc6 $11) 11. O-O $16 {[%emt 0:01:55]} O-O {[%emt 0:07:54]} 12. e5 {[%emt 0:02:57]} Bxd2 {[%emt 0:11:50]} 13. Nxd2 {[%emt 0:00:45]} f5 {[%emt 0:02:44]} 14. Rc1 {[%emt 0:05:54]} Nb6 {[%emt 0:10:59]} 15. Nc4 {[%emt 0:00:40]} Nxc4 {[%emt 0:03:17]} 16. Bxc4 {[%emt 0:00:06]} Bd7 {[%emt 0:22:55]} 17. Qb3 {[%emt 0:05:42]} Qb6 {[%emt 0:00:15]} 18. d5 {[%emt 0:01:40]} exd5 {[%emt 0:17:43]} 19. Bxd5+ {[%emt 0:00:49]} Kh8 {[%emt 0:00:06]} 20. Bxb7 {[%emt 0:01:07]} Qxb3 {[%emt 0:09:46]} 21. axb3 {[%emt 0:00:07]} Rab8 {[%emt 0:00:02]} 22. Bd5 {[%emt 0:01:00]} Rfe8 {[%emt 0:00:09]} 23. f4 {[%emt 0:05:01]} g5 {[%emt 0:00:08]} 24. Rfe1 {[%emt 0:02:58]} Be6 {[%emt 0:03:26]} 25. Bc6 {[%emt 0:00:58]} Rg8 {[%emt 0:01:01]} 26. fxg5 {[%emt 0:01:25]} Rxg5 {[%emt 0:00:11]} 27. Rc3 {[%emt 0:00:36]} Rg6 {[%emt 0:01:04]} 28. Ba4 {[%emt 0:05:13]} Rbg8 {[%emt 0:00:35]} 29. Re2 {[%emt 0:01:21]} f4 {[%emt 0:01:22]} 30. Bc6 {[%emt 0:06:03]} Bxb3 {[%emt 0:00:41]} 31. Be4 {[%emt 0:00:21]} Rb6 {[%emt 0:00:06]} 32. Rd2 {[%emt 0:01:07]} Bf7 {[%emt 0:00:26]} 33. Rd7 {[%emt 0:02:23]} Bg6 {[%emt 0:00:08]} 34. Bd5 {[%emt 0:00:39]} Re8 {[%emt 0:00:40]} 35. e6 {[%emt 0:02:44]} Bf5 {[%emt 0:00:09]} 36. Rcc7 {[%emt 0:00:38]} Bxe6 {[%emt 0:01:09]} 37. Bxe6 {[%emt 0:01:05]} Rbxe6 {[%emt 0:00:05]} 38. Rxh7+ {[%emt 0:00:04]} Kg8 {[%emt 0:00:07]} 39. Rcg7+ {[%emt 0:00:03]} Kf8 {[%emt 0:00:16]} 40. Rxa7 {[%emt 0:00:08]} Kg8 {[%emt 0:01:42]} 41. Rhg7+ {[%emt 0:35:47]} Kh8 {[%emt 0:30:07]} 42. Rgf7 {[%emt 0:00:25]} Re4 {[%emt 0:00:00]} 43. h3 {[%emt 0:00:00]} Rb4 {[%emt 0:00:00]} 44. Rh7+ {[%emt 0:00:00]} Kg8 {[%emt 0:00:00]} 45. Rag7+ {[%emt 0:00:00]} Kf8 {[%emt 0:00:00]} 46. Rf7+ {[%emt 0:00:00]} Kg8 {[%emt 0:00:00]} 47. Rhg7+ {[%emt 0:00:00]} Kh8 {[%emt 0:00:00]} 48. Rg4 {[%emt 0:00:00]} Ree4 {[%emt 0:00:00]} 49. Rf5 {[%emt 0:00:00]} Rb1+ {[%emt 0:00:00]} 50. Kh2 {[%emt 0:00:00]} Re7 {[%emt 0:00:00]} 51. Rh5+ {[%emt 0:00:00]} Rh7 {[%emt 0:00:00]} 52. Rxh7+ {[%emt 0:00:00]} Kxh7 {[%emt 0:00:00]} 53. Rxf4 {[%emt 0:00:00]} Kg6 {[%emt 0:00:00]} 54. Ra4 {[%emt 0:00:00]} Kg5 {[%emt 0:00:00]} 55. h4+ {[%emt 0:00:00]} Kh5 {[%emt 0:00:00]} 56. Kh3 {[%emt 0:00:00]} Rh1+ {[%emt 0:00:00]} 57. Kg3 {[%emt 0:00:00]} Rb1 {[%emt 0:00:00]} 58. Ra5+ {[%emt 0:00:00]} Kh6 {[%emt 0:00:00]} 59. Kh3 {[%emt 0:00:00]} Rb3+ {[%emt 0:00:00]} 60. g3 {[%emt 0:00:00]} Rc3 {[%emt 0:00:00]} 61. Re5 {[%emt 0:00:00]} Ra3 {[%emt 0:00:00]} 62. Kg4 {[%emt 0:00:00]} Ra4+ {[%emt 0:00:00]} 63. Kf5 {[%emt 0:00:00]} Kh5 {[%emt 0:00:00]} 64. Re8 {[%emt 0:00:00]} Ra5+ {[%emt 0:00:00]} 65. Kf4 {[%emt 0:00:00]} Ra4+ {[%emt 0:00:00]} 66. Kf3 {[%emt 0:00:00]} Ra3+ {[%emt 0:00:00]} 67. Re3 {[%emt 0:00:00]} Ra5 {[%emt 0:00:00]} 68. Kg2 {[%emt 0:00:00]} Kg4 {[%emt 0:00:00]} 69. Re4+ {[%emt 0:00:00]} Kh5 {[%emt 0:00:00]} 70. Kf3 {[%emt 0:00:00]} Ra3+ {[%emt 0:00:00]} 71. Kf4 {[%emt 0:00:00]} Ra1 {[%emt 0:00:00]} 72. Re5+ {[%emt 0:00:00]} Kh6 {[%emt 0:00:00]} 73. Re6+ {[%emt 0:00:00]} Kg7 {[%emt 0:00:00]} 74. h5 {[%emt 0:00:00]} Ra4+ {[%emt 0:00:00]} 75. Kf5 {[%emt 0:00:00]} Ra5+ {[%emt 0:00:00]} 76. Re5 {[%emt 0:00:00]} Ra3 {[%emt 0:00:00]} 77. g4 {[%emt 0:00:00]} Rf3+ {[%emt 0:00:00]} 78. Kg5 {[%emt 0:00:00]} Rf7 {[%emt 0:00:00]} 79. h6+ {[%emt 0:00:00]} Kh7 {[%emt 0:00:00]} 80. Kh5 {[%emt 0:00:00]} Rb7 {[%emt 0:00:00]} 81. g5 {[%emt 0:00:00]} Rb8 {[%emt 0:00:00]} 82. g6+ {[%emt 0:00:00]} Kh8 {[%emt 0:00:19]} 83. h7 {[%emt 0:00:00]} Kg7 {[%emt 0:00:17]} 84. Re7+ {[%emt 0:00:00]} Kf6 {[%emt 0:00:08]} 85. Rf7+ {[%emt 0:00:00]} Ke6 {[%emt 0:00:09]} 86. Rf1 {[%emt 0:00:00]} Rb2 {[%emt 0:00:25]} 87. g7 {[%emt 0:00:00]} Rh2+ {[%emt 0:00:07]} 88. Kg4 {[%emt 0:00:00]} Rg2+ {[%emt 0:00:13]} 89. Kh3 {[%emt 0:00:00]} Rxg7 {[%emt 0:00:07]} 90. h8=Q {[%emt 0:00:00]} Rh7+ {[%emt 0:00:09]} 91. Qxh7 {[%emt 0:00:00]} Ke5 {[%emt 0:00:03]} 1-0

[Event "Lueneburger Schachfestival IM 2019"]
[Site "Lueneburg"]
[Date "2019.08.06"]
[Round "5.2"]
[White "Ertan, Can"]
[Black "Souleidis, Georgios"]
[Result "0-1"]
[ECO "C71"]
[WhiteElo "2396"]
[BlackElo "2426"]
[Annotator "NA"]
[PlyCount "96"]
[EventDate "2019.08.02"]
[EventType "tourn"]
[EventCountry "GER"]
[SourceTitle "playchess.com"]
[Source "ChessBase"]
[SourceQuality "1"]
[TimeControl "40/5400+30:1800+30"]

1. e4 {[%emt 0:00:00]} e5 {[%emt 0:05:55]} 2. Nf3 {[%emt 0:00:00]} Nc6 {[%emt 0:00:06]} 3. Bb5 {[%emt 0:00:00]} a6 {[%emt 0:00:03]} 4. Ba4 {[%emt 0:00:00]} d6 {[%emt 0:00:03]} 5. d4 {[%emt 0:08:45]} b5 {[%emt 0:00:28]} 6. Bb3 {[%emt 0:00:05]} Nxd4 {[%emt 0:00:12]} 7. Nxd4 {[%emt 0:00:15]} exd4 {[%emt 0:00:06]} 8. c3 {[%emt 0:00:03]} dxc3 {[%emt 0:00:55]} 9. Qh5 {[%emt 0:00:03]} g6 {[%emt 0:03:19]} 10. Qd5 {[%emt 0:19:36]} Be6 {[%emt 0:00:18]} 11. Qc6+ {[%emt 0:00:08]} Bd7 {[%emt 0:00:04]} 12. Qxc3 {[%emt 0:06:35]} Qf6 {[%emt 0:05:32]} 13. a4 {[%emt 0:04:42]} bxa4 {[%emt 0:05:10]} 14. Bxa4 {[%emt 0:02:10]} Qxc3+ {[%emt 0:01:56]} 15. Nxc3 {[%emt 0:00:03]} Ne7 {[%emt 0:05:23]} 16. Bb5 {[%emt 0:16:15]} Bxb5 {[%emt 0:01:40]} 17. Nxb5 {[%emt 0:00:04]} Kd7 {[%emt 0:00:10]} 18. Bg5 {[%emt 0:00:33]} Bg7 {[%emt 0:08:44]} 19. Nc3 {[%emt 0:00:03]} Rhb8 {[%emt 0:01:39]} 20. O-O-O {[%emt 0:00:03]} Rb3 {[%emt 0:06:36]} 21. Kc2 {[%emt 0:06:59]} Rab8 {[%emt 0:00:22]} 22. Bc1 {[%emt 0:02:03]} Nc6 {[%emt 0:02:31]} 23. Rhe1 {[%emt 0:00:21]} Nd4+ {[%emt 0:02:22]} 24. Kd2 {[%emt 0:00:13]} Bh6+ {[%emt 0:05:54]} 25. Kd3 {[%emt 0:00:28]} Bxc1 {[%emt 0:00:06]} 26. Rxc1 {[%emt 0:00:23]} Ne6 {[%emt 0:01:16]} 27. Ke3 {[%emt 0:05:32]} Rxb2 {[%emt 0:00:59]} 28. Re2 {[%emt 0:03:03]} Rxe2+ {[%emt 0:00:27]} 29. Kxe2 {[%emt 0:00:15]} Rb2+ {[%emt 0:00:13]} 30. Kf1 {[%emt 0:00:44]} Nc5 {[%emt 0:01:13]} 31. f3 {[%emt 0:01:15]} a5 {[%emt 0:04:01]} 32. Ra1 {[%emt 0:03:03]} Rc2 {[%emt 0:02:13]} 33. Nd5 {[%emt 0:01:36]} a4 {[%emt 0:00:46]} 34. h4 {[%emt 0:00:03]} h5 {[%emt 0:06:25]} 35. Ra3 {[%emt 0:00:12]} Rb2 {[%emt 0:00:18]} 36. Ra1 {[%emt 0:02:35]} c6 {[%emt 0:05:25]} 37. Nc3 {[%emt 0:00:35]} Rb4 {[%emt 0:00:06]} 38. Kf2 {[%emt 0:01:28]} Rc4 {[%emt 0:00:51]} 39. Nd1 {[%emt 0:02:11]} Ke6 {[%emt 0:02:31]} 40. Kg3 {[%emt 0:08:33]} Rb4 {[%emt 0:04:45]} 41. Ne3 {[%emt 0:32:17]} Rb3 {[%emt 0:32:03]} 42. Kf4 {[%emt 0:02:27]} Kf6 {[%emt 0:09:56]} 43. Nc4 {[%emt 0:00:58]} d5 {[%emt 0:02:21]} 44. Nd2 {[%emt 0:00:00]} Rb2 {[%emt 0:00:00]} 45. Nf1 {[%emt 0:00:00]} Rxg2 {[%emt 0:00:00]} 46. exd5 {[%emt 0:00:00]} cxd5 {[%emt 0:00:00]} 47. Rd1 {[%emt 0:00:00]} a3 {[%emt 0:00:00]} 48. Ne3 {[%emt 0:00:00]} Ne6# {[%emt 0:00:00]} 0-1

[Event "Lueneburger Schachfestival IM 2019"]
[Site "Lueneburg"]
[Date "2019.08.06"]
[Round "5.3"]
[White "Knuedel, Torben"]
[Black "Pubantz, Jan"]
[Result "0-1"]
[ECO "B15"]
[WhiteElo "2151"]
[BlackElo "2214"]
[Annotator "NA"]
[PlyCount "70"]
[EventDate "2019.08.02"]
[EventType "tourn"]
[EventCountry "GER"]
[SourceTitle "playchess.com"]
[Source "ChessBase"]
[SourceQuality "1"]
[TimeControl "40/5400+30:1800+30"]

1. e4 {[%emt 0:00:00]} c6 {[%emt 0:00:00]} 2. d4 {[%emt 0:00:00]} d5 {[%emt 0:00:00]} 3. Nc3 {[%emt 0:00:00]} dxe4 {[%emt 0:00:00]} 4. Nxe4 {[%emt 0:00:00]} Nf6 {[%emt 0:00:02]} 5. Nxf6+ {[%emt 0:00:00]} exf6 {[%emt 0:00:10]} 6. c3 {[%emt 0:00:24]} Bd6 {[%emt 0:00:46]} 7. Bd3 {[%emt 0:01:07]} O-O {[%emt 0:00:28]} 8. Qc2 {[%emt 0:00:14]} Re8+ {[%emt 0:01:02]} 9. Ne2 {[%emt 0:00:22]} h5 {[%emt 0:00:29]} 10. Be3 {[%emt 0:03:43]} Nd7 $14 {[%emt 0:01:02]} 11. O-O-O {[%emt 0:12:16]} Nf8 {[%emt 0:00:13]} 12. Kb1 {[%emt 0:03:17]} Be6 {[%emt 0:03:26]} 13. Nf4 {[%emt 0:06:09]} Bxf4 {[%emt 0:26:39]} 14. Bxf4 {[%emt 0:00:11]} b5 {[%emt 0:01:03]} 15. Rhe1 {[%emt 0:13:01]} a5 {[%emt 0:06:50]} 16. Be4 {[%emt 0:08:00]} Qd7 {[%emt 0:06:03]} 17. f3 {[%emt 0:12:37]} a4 {[%emt 0:04:08]} 18. h3 {[%emt 0:03:04]} f5 {[%emt 0:02:48]} 19. Bd3 {[%emt 0:00:45]} Qd5 {[%emt 0:00:28]} 20. Rxe6 {[%emt 0:08:29]} Nxe6 {[%emt 0:07:29]} 21. Be5 {[%emt 0:02:24]} b4 {[%emt 0:14:39]} 22. Bxf5 {[%emt 0:04:39]} b3 {[%emt 0:01:28]} 23. Bh7+ {[%emt 0:00:43]} Kh8 {[%emt 0:02:55]} 24. Qf5 {[%emt 0:01:19]} Nf8 {[%emt 0:04:48]} 25. c4 {[%emt 0:00:18]} Qxc4 {[%emt 0:04:57]} 26. Qd3 {[%emt 0:03:37]} bxa2+ {[%emt 0:01:55]} 27. Ka1 {[%emt 0:00:12]} Qb4 {[%emt 0:03:13]} 28. Be4 {[%emt 0:01:21]} a3 {[%emt 0:02:33]} 29. b3 {[%emt 0:00:19]} Rad8 {[%emt 0:00:39]} 30. Bg3 {[%emt 0:02:39]} Ne6 {[%emt 0:01:14]} 31. Bf2 {[%emt 0:06:54]} Nc5 {[%emt 0:00:36]} 32. dxc5 {[%emt 0:02:01]} Rxd3 {[%emt 0:00:08]} 33. Rxd3 {[%emt 0:00:04]} Rxe4 {[%emt 0:01:29]} 34. fxe4 {[%emt 0:00:02]} Qxe4 {[%emt 0:00:11]} 35. Rd2 {[%emt 0:00:06]} Qb1# {[%emt 0:00:20]} 0-1

[Event "Lueneburger Schachfestival IM 2019"]
[Site "Lueneburg"]
[Date "2019.08.06"]
[Round "5.4"]
[White "Aarav Dengla"]
[Black "Stork, Oliver"]
[Result "0-1"]
[ECO "B13"]
[WhiteElo "2038"]
[BlackElo "2322"]
[Annotator "NA"]
[PlyCount "174"]
[EventDate "2019.08.02"]
[EventType "tourn"]
[EventCountry "GER"]
[SourceTitle "playchess.com"]
[Source "ChessBase"]
[SourceQuality "1"]
[TimeControl "40/5400+30:1800+30"]

1. e4 {[%emt 0:00:00]} c6 {[%emt 0:02:03]} 2. d4 {[%emt 0:00:00]} d5 {[%emt 0:00:08]} 3. exd5 {[%emt 0:00:00]} cxd5 {[%emt 0:00:06]} 4. Bd3 {[%emt 0:00:00]} Nc6 {[%emt 0:00:12]} 5. c3 {[%emt 0:00:00]} Qc7 {[%emt 0:00:08]} 6. Ne2 {[%emt 0:00:00]} Bg4 {[%emt 0:00:14]} 7. f3 {[%emt 0:00:00]} Bh5 {[%emt 0:00:14]} 8. Bf4 {[%emt 0:00:05]} Qd7 {[%emt 0:00:11]} 9. h4 {[%emt 0:00:05]} Bg6 {[%emt 0:07:35]} 10. h5 $11 {[%emt 0:00:07]} Bxd3 {[%emt 0:00:05]} 11. Qxd3 {[%emt 0:00:05]} e6 {[%emt 0:01:29]} 12. g4 {[%emt 0:00:04]} h6 {[%emt 0:02:35]} 13. Nd2 {[%emt 0:02:46]} Nf6 {[%emt 0:05:41]} 14. Qe3 {[%emt 0:06:11]} Bd6 {[%emt 0:07:33]} 15. g5 {[%emt 0:07:46]} hxg5 {[%emt 0:01:17]} 16. Bxd6 {[%emt 0:00:11]} Qxd6 {[%emt 0:00:07]} 17. Qxg5 {[%emt 0:00:18]} e5 {[%emt 0:14:55]} 18. Nb3 {[%emt 0:20:35]} O-O-O {[%emt 0:07:29]} 19. O-O-O {[%emt 0:09:24]} exd4 {[%emt 0:12:03]} 20. Nexd4 {[%emt 0:01:30]} Qe5 {[%emt 0:03:19]} 21. Qxe5 {[%emt 0:32:49]} Nxe5 {[%emt 0:00:07]} 22. f4 {[%emt 0:01:04]} Nc6 {[%emt 0:09:25]} 23. Rde1 {[%emt 0:08:09]} Rxh5 {[%emt 0:04:41]} 24. Nxc6 {[%emt 0:04:45]} bxc6 {[%emt 0:00:26]} 25. Rxh5 {[%emt 0:00:01]} Nxh5 {[%emt 0:00:09]} 26. Re7 {[%emt 0:00:21]} Rd7 {[%emt 0:00:24]} 27. Re8+ {[%emt 0:00:22]} Kc7 {[%emt 0:03:30]} 28. Nc5 {[%emt 0:02:27]} Rd8 {[%emt 0:03:06]} 29. Re5 {[%emt 0:00:15]} Nf6 {[%emt 0:04:40]} 30. Rg5 {[%emt 0:01:50]} Rg8 {[%emt 0:06:11]} 31. Kc2 {[%emt 0:01:38]} Nd7 {[%emt 0:01:19]} 32. Nxd7 {[%emt 0:00:28]} Kxd7 {[%emt 0:00:05]} 33. b4 {[%emt 0:00:14]} f6 {[%emt 0:03:54]} 34. Rh5 {[%emt 0:01:06]} Ke6 {[%emt 0:00:48]} 35. Kd3 {[%emt 0:02:14]} a5 {[%emt 0:00:04]} 36. a3 {[%emt 0:00:18]} axb4 {[%emt 0:00:11]} 37. axb4 {[%emt 0:01:22]} g6 {[%emt 0:01:10]} 38. Rh4 {[%emt 0:00:00]} Kf5 {[%emt 0:00:41]} 39. c4 {[%emt 0:00:18]} dxc4+ {[%emt 0:00:36]} 40. Kxc4 {[%emt 0:00:02]} Rb8 {[%emt 0:00:22]} 41. Kc5 {[%emt 0:31:07]} Rb5+ {[%emt 0:09:20]} 42. Kc4 {[%emt 0:00:00]} Rd5 {[%emt 0:00:07]} 43. Rh6 {[%emt 0:00:00]} Rd1 {[%emt 0:01:32]} 44. Kc5 {[%emt 0:00:00]} Rc1+ {[%emt 0:00:10]} 45. Kd4 {[%emt 0:00:00]} Rf1 {[%emt 0:04:25]} 46. Rh4 {[%emt 0:00:00]} Rxf4+ {[%emt 0:07:29]} 47. Rxf4+ {[%emt 0:00:00]} Kxf4 {[%emt 0:00:03]} 48. Kc5 {[%emt 0:00:00]} f5 {[%emt 0:00:50]} 49. Kxc6 {[%emt 0:00:00]} Kg4 {[%emt 0:00:43]} 50. b5 {[%emt 0:00:00]} f4 {[%emt 0:00:04]} 51. b6 {[%emt 0:00:00]} f3 {[%emt 0:00:02]} 52. b7 {[%emt 0:00:00]} f2 {[%emt 0:00:04]} 53. b8=Q {[%emt 0:00:00]} f1=Q {[%emt 0:00:06]} 54. Qb4+ {[%emt 0:00:00]} Qf4 {[%emt 0:00:09]} 55. Qe1 {[%emt 0:00:00]} g5 {[%emt 0:03:18]} 56. Qg1+ {[%emt 0:00:00]} Kf5 {[%emt 0:01:37]} 57. Qc5+ {[%emt 0:00:00]} Qe5 {[%emt 0:00:14]} 58. Qf2+ {[%emt 0:00:00]} Kg6 {[%emt 0:00:12]} 59. Qg2 {[%emt 0:00:00]} Qf5 {[%emt 0:02:00]} 60. Kb6 {[%emt 0:00:00]} g4 {[%emt 0:00:24]} 61. Ka7 {[%emt 0:00:00]} Qc5+ {[%emt 0:00:30]} 62. Ka8 {[%emt 0:01:14]} Kf5 {[%emt 0:01:34]} 63. Qf1+ {[%emt 0:02:30]} Kg5 {[%emt 0:00:11]} 64. Qg2 {[%emt 0:00:36]} Qa3+ {[%emt 0:00:43]} 65. Kb8 {[%emt 0:00:27]} Qf3 {[%emt 0:00:32]} 66. Qg1 {[%emt 0:00:18]} g3 {[%emt 0:02:27]} 67. Qc5+ {[%emt 0:00:37]} Kg4 {[%emt 0:00:52]} 68. Qc8+ {[%emt 0:00:09]} Qf5 {[%emt 0:00:07]} 69. Qg8+ {[%emt 0:00:37]} Kf4 {[%emt 0:02:08]} 70. Qc4+ {[%emt 0:00:26]} Qe4 {[%emt 0:00:10]} 71. Qf7+ {[%emt 0:03:20]} Kg4 {[%emt 0:01:15]} 72. Qg7+ {[%emt 0:01:30]} Kh3 {[%emt 0:00:37]} 73. Qh8+ {[%emt 0:01:16]} Qh4 {[%emt 0:00:13]} 74. Qc8+ {[%emt 0:00:11]} Kh2 {[%emt 0:00:15]} 75. Qc2+ {[%emt 0:00:32]} g2 {[%emt 0:00:13]} 76. Qd2 {[%emt 0:01:52]} Qf6 {[%emt 0:01:14]} 77. Qe2 {[%emt 0:00:40]} Qd8+ {[%emt 0:00:44]} 78. Ka7 {[%emt 0:01:00]} Qd5 {[%emt 0:00:31]} 79. Qf2 {[%emt 0:00:22]} Qd7+ {[%emt 0:01:05]} 80. Ka8 {[%emt 0:01:10]} Qa4+ {[%emt 0:00:45]} 81. Kb8 {[%emt 0:00:53]} Qb4+ {[%emt 0:00:07]} 82. Ka7 {[%emt 0:00:22]} Qe4 {[%emt 0:00:54]} 83. Qb2 {[%emt 0:00:40]} Qe7+ {[%emt 0:01:05]} 84. Ka8 {[%emt 0:00:43]} Qd8+ {[%emt 0:00:29]} 85. Ka7 {[%emt 0:00:08]} Qc7+ {[%emt 0:00:04]} 86. Ka6 {[%emt 0:00:09]} Qc8+ {[%emt 0:00:07]} 87. Ka7 {[%emt 0:00:05]} Kh1 {[%emt 0:00:11]} 0-1

[Event "Lueneburger Schachfestival IM 2019"]
[Site "Lueneburg"]
[Date "2019.08.06"]
[Round "5.5"]
[White "Kahlert, Thomas"]
[Black "Schulze, Lara"]
[Result "0-1"]
[ECO "E43"]
[WhiteElo "2152"]
[BlackElo "2253"]
[Annotator "NA"]
[PlyCount "68"]
[EventDate "2019.08.02"]
[EventType "tourn"]
[EventCountry "GER"]
[SourceTitle "playchess.com"]
[Source "ChessBase"]
[SourceQuality "1"]
[TimeControl "40/5400+30:1800+30"]

1. Nf3 {[%emt 0:00:00]} Nf6 {[%emt 0:00:00]} 2. c4 {[%emt 0:00:00]} e6 {[%emt 0:00:00]} 3. Nc3 {[%emt 0:00:00]} Bb4 {[%emt 0:00:00]} 4. d4 {[%emt 0:00:01]} b6 {[%emt 0:00:10]} 5. e3 {[%emt 0:00:42]} Ne4 {[%emt 0:01:53]} 6. Qc2 {[%emt 0:01:08]} Bb7 {[%emt 0:00:14]} 7. Bd3 {[%emt 0:00:34]} f5 {[%emt 0:00:19]} 8. O-O {[%emt 0:04:41]} Bxc3 {[%emt 0:00:28]} 9. bxc3 {[%emt 0:00:13]} O-O $11 {[%emt 0:00:27]} 10. Nd2 {[%emt 0:06:12]} Qh4 {[%emt 0:01:00]} 11. f3 {[%emt 0:02:15]} Nxd2 {[%emt 0:01:38]} 12. Bxd2 {[%emt 0:00:13]} Nc6 {[%emt 0:00:18]} 13. Rae1 {[%emt 0:08:00]} Ne7 {[%emt 0:12:00]} 14. Rf2 {[%emt 0:05:02]} Rf6 {[%emt 0:06:51]} 15. g3 {[%emt 0:07:03]} Qh5 {[%emt 0:02:13]} 16. e4 {[%emt 0:10:07]} fxe4 {[%emt 0:07:20]} 17. Bxe4 {[%emt 0:00:43]} Bxe4 {[%emt 0:01:22]} 18. Qxe4 {[%emt 0:00:07]} Raf8 {[%emt 0:02:19]} 19. d5 {[%emt 0:08:34]} Rxf3 {[%emt 0:06:33]} 20. Rxf3 {[%emt 0:00:21]} Qxf3 {[%emt 0:02:27]} 21. Qxf3 {[%emt 0:01:31]} Rxf3 {[%emt 0:00:07]} 22. dxe6 {[%emt 0:03:32]} dxe6 {[%emt 0:07:39]} 23. Rxe6 {[%emt 0:00:09]} Kf7 {[%emt 0:00:09]} 24. Re4 {[%emt 0:00:26]} Rf5 {[%emt 0:08:48]} 25. Rf4 {[%emt 0:07:37]} Ke6 {[%emt 0:01:02]} 26. Kg2 {[%emt 0:01:50]} Ra5 {[%emt 0:01:45]} 27. Kf3 {[%emt 0:04:37]} Rxa2 {[%emt 0:01:05]} 28. Re4+ {[%emt 0:00:30]} Kd7 {[%emt 0:01:09]} 29. Bg5 {[%emt 0:01:35]} Nc6 {[%emt 0:02:16]} 30. h4 {[%emt 0:00:34]} a5 {[%emt 0:03:41]} 31. h5 {[%emt 0:02:45]} Rc2 {[%emt 0:03:32]} 32. Re3 {[%emt 0:01:44]} a4 {[%emt 0:00:34]} 33. Ke4 {[%emt 0:01:52]} a3 {[%emt 0:01:27]} 34. Kd3 {[%emt 0:00:06]} a2 {[%emt 0:01:32]} 0-1